bitfinex/quotes_SOLUSD_20251031
["timestamp","ask_amount","ask_price","bid_price","bid_amount"]
[1761952139346,0.2,187.8,187.76,21.33747631]
[1761952139549,3.98307126,187.79,187.77,3.0696477]
[1761952139734,0.2,187.8,187.77,3.0696477]
[1761952140043,0.89,187.8,187.77,3.0696477]
[1761952140747,0.89,187.8,187.78,5.32538076]
[1761952141344,0.89,187.8,187.79,3.98352397]
[1761952142046,0.2,187.8,187.79,3.98352397]
[1761952142247,0.2,187.8,187.79,7.05317167]
[1761952142547,0.2,187.8,187.79,12.69826885]
[1761952143048,0.2,187.8,187.79,9.62862115]
[1761952143347,0.2,187.8,187.79,12.69826885]
[1761952147241,0.2,187.8,187.79,22.48709654]
[1761952147733,0.2,187.8,187.79,84.28709654]
[1761952150340,0.2,187.8,187.79,83.96709654]
[1761952150859,0.2,187.8,187.79,84.28709654]
[1761952154147,0.2,187.8,187.79,83.96709654]
[1761952154934,0.2,187.8,187.79,19.41744884]
[1761952155130,0.2,187.8,187.79,22.48709654]
[1761952158161,0.2,187.8,187.79,22.16709654]
[1761952158679,0.2,187.8,187.79,22.48709654]
[1761952159233,0.2,187.8,187.79,22.16709654]
[1761952159437,0.2,187.8,187.79,22.48709654]
[1761952159666,0.2,187.8,187.79,22.16709654]
[1761952160365,0.2,187.8,187.79,71.10862115]
[1761952160573,0.91,187.8,187.79,61.8]
[1761952169662,0.2,187.8,187.79,61.8]
[1761952169860,0.2,187.8,187.79,70.19474488]
[1761952180488,0.2,187.8,187.79,72.32893188]
[1761952183185,0.89,187.8,187.79,72.32893188]
[1761952183665,0.89,187.8,187.79,69.25928418]
[1761952185090,0.89,187.8,187.79,72.32893188]
[1761952186480,0.89,187.8,187.79,69.25928418]
[1761952193796,0.89,187.8,187.79,67.12509718]
[1761952201983,0.2,187.8,187.79,69.08897512]
[1761952202179,4.19695791,187.8,187.79,69.08897512]
[1761952202406,0.2,187.8,187.79,69.08897512]
[1761952202584,0.87,187.8,187.79,69.08897512]
[1761952204692,4.86797601,187.8,187.79,67.12509718]
[1761952206791,6.83185395,187.8,187.78,61.8]
[1761952207105,4.66797601,187.79,187.78,61.8]
[1761952208209,4.66797601,187.79,187.74,69.0901243]
[1761952208419,4.66797601,187.78,187.74,61.8]
[1761952208710,3.99797601,187.77,187.74,61.8]
[1761952208892,3.99797601,187.76,187.74,61.8]
[1761952209097,3.99797601,187.75,187.74,61.8]
[1761952209304,4.66797601,187.75,187.74,61.8]
[1761952211220,4.66797601,187.75,187.72,61.8]
[1761952211389,4.66797601,187.74,187.7,1.96387794]
[1761952211590,3.99523759,187.73,187.7,1.96387794]
[1761952211803,0.67,187.73,187.7,1.96387794]
[1761952212113,0.67,187.72,187.7,1.96387794]
[1761952212609,0.67,187.72,187.7,7.29151823]
[1761952215701,0.67,187.72,187.7,5.32764029]
[1761952216007,0.67,187.72,187.7,69.09151823]
[1761952219919,0.67,187.72,187.7,67.12764029]
[1761952220500,0.67,187.72,187.7,69.09151823]
[1761952224523,0.67,187.72,187.7,61.8]
[1761952225211,0.67,187.72,187.7,67.12753661]
[1761952236426,0.67,187.72,187.7,61.8]
[1761952240534,1.96387794,187.71,187.7,61.8]
[1761952240725,5.94884617,187.71,187.66,67.12875595]
[1761952240925,4.69496823,187.7,187.66,67.12875595]
[1761952241249,0.71,187.7,187.66,67.12875595]
[1761952241438,0.71,187.69,187.66,67.12875595]
[1761952254045,0.71,187.69,187.66,69.09263389]
[1761952255440,3.99230308,187.68,187.66,69.09263389]
[1761952255638,0.71,187.69,187.66,69.09263389]
[1761952255947,4.70230308,187.68,187.66,69.09263389]
[1761952256147,0.71,187.68,187.66,69.09263389]
[1761952258945,0.71,187.71,187.66,82.41459914]
[1761952259136,4.70264934,187.7,187.68,1.96387794]
[1761952259346,0.71,187.72,187.68,1.96387794]
[1761952259642,3.9925736,187.71,187.68,1.96387794]
[1761952259846,0.71,187.72,187.68,1.96387794]
[1761952259847,3.9925736,187.7,187.68,1.96387794]
[1761952260150,0.71,187.72,187.68,63.76387794]
[1761952260345,3.99272877,187.71,187.68,67.12807647]
[1761952260551,3.99272877,187.7,187.68,69.09195441]
[1761952260853,3.99288129,187.69,187.68,69.09195441]
[1761952261355,3.99288129,187.69,187.68,70.19995867]
[1761952267649,0.71,187.7,187.68,70.19995867]
[1761952268041,0.71,187.7,187.68,67.12807647]
[1761952271838,0.71,187.7,187.68,83.14473379]
[1761952273765,23.6638822,187.73,187.68,83.14473379]
[1761952273959,0.71,187.71,187.68,83.14473379]
[1761952275257,0.71,187.71,187.68,70.19995867]
[1761952275460,0.71,187.71,187.69,16.01580225]
[1761952277357,0.71,187.71,187.7,5.3276505]
[1761952277554,0.71,187.71,187.7,67.1276505]
[1761952280667,0.71,187.75,187.7,70.5195327]
[1761952280868,3.99719551,187.74,187.71,0.32]
[1761952281056,0.71,187.75,187.72,3.0718822]
[1761952281362,3.99704073,187.74,187.72,3.0718822]
[1761952281563,0.71,187.76,187.72,19.0851198]
[1761952281772,3.99668215,187.75,187.73,10.10882769]
[1761952282064,0.2,187.8,187.75,9.78882769]
[1761952282269,0.2,187.8,187.78,3.0718822]
[1761952282679,0.88,187.8,187.79,7.45951195]
[1761952284150,0.2,187.8,187.79,7.45951195]
[1761952287967,0.2,187.8,187.79,10.53139415]
[1761952290078,0.2,187.8,187.79,20.64022184]
[1761952294389,0.2,187.82,187.79,95.75296479]
[1761952294683,0.2,187.82,187.81,12.86070989]
[1761952295683,0.2,187.82,187.81,14.99444151]
[1761952295867,0.2,187.82,187.81,20.31897162]
[1761952298077,0.2,187.82,187.81,82.11897162]
[1761952302497,0.2,187.82,187.81,82.43897162]
[1761952309282,0.2,187.82,187.81,82.11897162]
[1761952310016,0.9,187.82,187.81,82.11897162]
[1761952310184,0.2,187.82,187.81,82.11897162]
[1761952310514,0.2,187.82,187.81,82.43897162]
[1761952313111,0.2,187.82,187.81,82.11897162]
[1761952313786,0.2,187.82,187.81,82.43897162]
[1761952314209,0.2,187.82,187.81,82.11897162]
[1761952316209,0.2,187.82,187.81,82.43897162]
[1761952316614,0.2,187.82,187.81,82.11897162]
[1761952321430,0.2,187.82,187.81,81.0096962]
[1761952322142,0.2,187.82,187.81,81.3296962]
[1761952322826,0.2,187.82,187.81,81.0096962]
[1761952324547,0.92,187.84,187.83,9.78882769]
[1761952324729,0.92,187.84,187.83,73.35143447]
[1761952325037,0.2,187.85,187.83,73.35143447]
[1761952325245,0.2,187.85,187.84,11.75143447]
[1761952325819,0.2,187.85,187.84,13.88482469]
[1761952326209,0.2,187.85,187.84,80.80850441]
[1761952326814,0.2,187.85,187.84,78.84589763]
[1761952327020,0.92,187.85,187.84,80.80850441]
[1761952328747,0.2,187.85,187.84,80.80850441]
[1761952329117,0.92,187.85,187.84,80.80850441]
[1761952331527,0.92,187.85,187.84,78.67511419]
[1761952336654,0.2,187.85,187.84,78.67511419]
[1761952338247,0.2,187.85,187.84,84.63894055]
[1761952338623,0.89,187.85,187.84,84.63894055]
[1761952339546,0.2,187.85,187.84,84.63894055]
[1761952340459,0.89,187.85,187.84,84.63894055]
[1761952341921,0.2,187.85,187.84,84.63894055]
[1761952347747,0.89,187.85,187.84,84.63894055]
[1761952347949,0.1,187.86,187.85,70.49882769]
[1761952348336,0.1,187.86,187.85,60.71]
[1761952349478,2.06260678,187.86,187.83,60.71]
[1761952349764,1.96260678,187.85,187.83,60.71]
[1761952349961,2.65260678,187.85,187.83,60.71]
[1761952350170,0.69,187.84,187.83,60.71]
[1761952350372,6.64452176,187.84,187.83,60.71]
[1761952350872,6.64452176,187.84,187.81,66.03445768]
[1761952351071,4.68191498,187.83,187.81,66.03445768]
[1761952351375,3.99191498,187.82,187.81,60.71]
[1761952351568,4.68191498,187.82,187.81,60.71]
[1761952352177,6.64452176,187.82,187.81,60.71]
[1761952353852,6.64452176,187.82,187.78,66.0353728]
[1761952354171,6.64452176,187.81,187.78,66.0353728]
[1761952354469,0.69,187.81,187.78,66.0353728]
[1761952354674,0.69,187.8,187.78,66.0353728]
[1761952358687,1.96260678,187.79,187.78,60.71]
[1761952359155,0.69,187.79,187.78,60.71]
[1761952360078,2.65260678,187.79,187.78,60.71]
[1761952360982,0.69,187.79,187.78,60.71]
[1761952363264,2.65260678,187.79,187.78,60.71]
[1761952366586,0.69,187.79,187.78,60.71]
[1761952377783,2.65260678,187.79,187.78,60.71]
[1761952377985,2.65260678,187.79,187.74,60.71]
[1761952378287,1.96260678,187.76,187.74,60.71]
[1761952378797,0.68,187.75,187.74,60.71]
[1761952382080,0.68,187.76,187.74,60.71]
[1761952384682,0.68,187.76,187.74,66.03646745]
[1761952385008,3.75076202,187.79,187.75,0.67]
[1761952385313,0.68,187.82,187.77,3.07076202]
[1761952385679,0.68,187.82,187.78,0.67]
[1761952385890,0.68,187.82,187.78,3.74076202]
[1761952386207,0.68,187.82,187.78,5.32516006]
[1761952386703,0.68,187.82,187.75,66.03616054]
[1761952386704,3.07076202,187.79,187.75,66.03616054]
[1761952386900,3.07076202,187.8,187.75,66.03616054]
[1761952387094,0.68,187.8,187.75,69.10692256]
[1761952387300,0.68,187.8,187.76,0.67]
[1761952387503,0.68,187.8,187.75,69.10692256]
[1761952387688,3.75076202,187.8,187.75,66.03616054]
[1761952387889,3.75076202,187.8,187.75,66.70616054]
[1761952388118,0.68,187.79,187.75,66.70616054]
[1761952391430,0.68,187.79,187.75,69.77692256]
[1761952392301,3.98716727,187.78,187.75,69.77692256]
[1761952392502,0.68,187.79,187.75,69.77692256]
[1761952392713,3.98725809,187.78,187.75,69.77692256]
[1761952393024,0.68,187.79,187.75,69.77692256]
[1761952393220,3.98725809,187.78,187.75,69.77692256]
[1761952393520,3.07076202,187.8,187.76,0.67]
[1761952393691,3.9900938,187.79,187.76,0.67]
[1761952393891,3.9900938,187.78,187.76,0.67]
[1761952394188,3.99188093,187.77,187.76,0.67]
[1761952394793,3.99188093,187.77,187.76,5.99594801]
[1761952395216,3.99188093,187.77,187.76,5.32594801]
[1761952396525,3.99188093,187.77,187.76,5.99594801]
[1761952397606,0.68,187.8,187.76,5.99594801]
[1761952397824,3.99396425,187.79,187.76,66.70594801]
[1761952398016,3.99396425,187.78,187.76,66.70594801]
[1761952398322,0.68,187.8,187.76,66.70594801]
[1761952398633,3.99409165,187.79,187.76,66.70594801]
[1761952398831,3.99409165,187.78,187.76,66.70594801]
[1761952399134,0.68,187.8,187.76,66.70594801]
[1761952399331,3.9942771,187.79,187.76,66.70594801]
[1761952399627,3.9942771,187.78,187.76,66.70594801]
[1761952399815,0.68,187.8,187.76,66.70594801]
[1761952400131,3.99425733,187.79,187.76,66.03594801]
[1761952400330,3.99425733,187.78,187.76,66.03594801]
[1761952400631,3.75076202,187.79,187.76,66.03594801]
[1761952400832,3.99446263,187.78,187.76,66.03594801]
[1761952401029,3.75076202,187.79,187.76,66.03594801]
[1761952401231,3.99446224,187.78,187.76,66.70594801]
[1761952401525,3.75076202,187.79,187.76,66.03594801]
[1761952401730,3.99470981,187.78,187.76,66.03594801]
[1761952402040,3.75076202,187.79,187.76,66.69594801]
[1761952402208,3.99470941,187.78,187.76,66.69594801]
[1761952402411,3.75076202,187.79,187.76,66.69594801]
[1761952402709,3.99491337,187.78,187.76,66.69594801]
[1761952402912,3.75076202,187.79,187.76,66.03594801]
[1761952403110,3.99491337,187.78,187.76,66.03594801]
[1761952403406,3.75076202,187.79,187.76,66.03594801]
[1761952403608,3.99515601,187.78,187.76,66.03594801]
[1761952403818,3.75076202,187.79,187.76,66.69594801]
[1761952404136,3.99515641,187.78,187.76,66.03594801]
[1761952404433,0.67,187.78,187.76,66.03594801]
[1761952406937,3.07076202,187.8,187.77,0.7]
[1761952407109,3.99514373,187.79,187.77,0.7]
[1761952407318,3.76076202,187.8,187.76,66.73594801]
[1761952407517,4.6852412,187.79,187.76,66.73594801]
[1761952407733,0.69,187.79,187.76,66.73594801]
[1761952408031,0.69,187.79,187.76,66.03594801]
[1761952409535,3.99546543,187.78,187.76,60.71]
[1761952409727,3.07076202,187.78,187.76,60.71]
[1761952409937,7.75641453,187.77,187.76,60.71]
[1761952411928,7.75641453,187.77,187.73,66.03679628]
[1761952412133,7.75641453,187.76,187.73,66.03679628]
[1761952412335,3.99565251,187.75,187.73,66.03679628]
[1761952412646,3.99565251,187.74,187.73,66.03679628]
[1761952413543,4.68565251,187.74,187.73,60.71]
[1761952414050,7.75641453,187.74,187.73,60.71]
[1761952414551,4.68565251,187.74,187.7,90.40033334]
[1761952414728,3.99565251,187.73,187.71,0.7]
[1761952414931,3.99565251,187.72,187.71,0.7]
[1761952415444,4.68565251,187.72,187.7,66.03757132]
[1761952415746,3.76076202,187.74,187.7,66.73757132]
[1761952415948,4.6838049,187.73,187.7,66.73757132]
[1761952416149,3.9938049,187.72,187.7,66.73757132]
[1761952416451,0.69,187.73,187.7,66.73757132]
[1761952416642,3.99344879,187.72,187.7,66.03757132]
[1761952416842,0.69,187.73,187.7,66.03757132]
[1761952417037,3.9936002,187.72,187.7,66.73757132]
[1761952417345,0.69,187.73,187.7,66.73757132]
[1761952417650,3.99298494,187.72,187.7,66.73757132]
[1761952417948,0.69,187.73,187.7,66.73757132]
[1761952418153,3.99298534,187.72,187.7,66.73757132]
[1761952418338,0.69,187.73,187.7,66.73757132]
[1761952418636,3.99248624,187.72,187.7,66.73757132]
[1761952418837,0.69,187.73,187.7,66.73757132]
[1761952419036,3.99248624,187.72,187.7,66.73757132]
[1761952419240,0.69,187.73,187.7,66.03757132]
[1761952419532,7.06284933,187.72,187.7,60.71]
[1761952419845,3.07076202,187.72,187.7,60.71]
[1761952420032,0.69,187.71,187.7,60.71]
[1761952420342,3.07076202,187.72,187.7,60.71]
[1761952420544,3.76076202,187.72,187.7,60.71]
[1761952422845,0.69,187.71,187.7,60.71]
[1761952423151,4.68120677,187.71,187.7,60.71]
[1761952423448,7.75196879,187.71,187.67,60.71]
[1761952423655,7.75196879,187.7,187.67,60.71]
[1761952423983,3.76076202,187.7,187.67,66.03845588]
[1761952424128,3.76076202,187.69,187.67,66.03845588]
[1761952424327,0.69,187.69,187.67,66.03845588]
[1761952424648,3.76076202,187.69,187.67,66.03845588]
[1761952425649,0.69,187.68,187.66,5.32871599]
[1761952426075,3.07076202,187.69,187.66,5.32871599]
[1761952426374,3.76076202,187.69,187.66,5.32871599]
[1761952427484,3.76076202,187.68,187.66,5.32871599]
[1761952428580,0.69,187.68,187.66,5.32871599]
[1761952433347,0.69,187.68,187.65,76.29694688]
[1761952433552,3.76076202,187.68,187.65,76.29694688]
[1761952433755,0.69,187.68,187.65,76.29694688]
[1761952442165,23.66276202,187.7,187.66,0.7]
[1761952442367,24.38276202,187.7,187.66,0.7]
[1761952442577,20.592,187.7,187.66,3.77076202]
[1761952442891,0.72,187.7,187.67,5.32850215]
[1761952443096,0.72,187.7,187.67,6.02850215]
[1761952444886,2.6864188,187.7,187.67,5.32850215]
[1761952445479,1.9664188,187.7,187.66,6.02875288]
[1761952445758,2.6864188,187.69,187.65,70.96789094]
[1761952445957,1.9664188,187.67,187.65,70.96789094]
[1761952446472,0.72,187.68,187.65,76.29676035]
[1761952447090,0.72,187.68,187.65,76.99676035]
[1761952447987,0.72,187.68,187.65,76.29676035]
[1761952448178,0.72,187.68,187.65,76.99676035]
[1761952449072,1.9664188,187.7,187.65,76.99676035]
[1761952449265,0.72,187.69,187.66,0.7]
[1761952450170,2.6864188,187.71,187.66,0.7]
[1761952450371,2.6864188,187.71,187.66,2.6664188]
[1761952450372,21.312,187.71,187.66,2.6664188]
[1761952450777,21.312,187.71,187.67,6.02850215]
[1761952451077,20.592,187.71,187.67,6.02850215]
[1761952451393,4.70639937,187.7,187.67,6.02850215]
[1761952451579,0.72,187.7,187.67,6.02850215]
[1761952451766,0.72,187.71,187.67,6.02850215]
[1761952452088,3.98639969,187.7,187.67,6.02850215]
[1761952452277,0.72,187.71,187.67,6.02850215]
[1761952452585,3.98759795,187.7,187.67,6.02850215]
[1761952452789,0.72,187.71,187.67,6.02850215]
[1761952452979,3.98759834,187.7,187.67,21.34601463]
[1761952453180,2.6864188,187.71,187.67,21.34601463]
[1761952453484,3.98896853,187.7,187.67,66.03850215]
[1761952453678,3.98896853,187.69,187.67,66.03850215]
[1761952453886,0.72,187.7,187.67,66.03850215]
[1761952454078,3.98927147,187.69,187.67,66.03850215]
[1761952454281,3.99077856,187.68,187.67,66.03850215]
[1761952454865,3.99077856,187.68,187.67,70.02928071]
[1761952455271,0.72,187.7,187.67,70.02928071]
[1761952455472,3.99163461,187.69,187.67,70.02928071]
[1761952455673,0.72,187.7,187.67,70.02928071]
[1761952455895,3.99163421,187.69,187.67,70.02928071]
[1761952456188,0.72,187.7,187.67,70.02928071]
[1761952456390,3.99229304,187.69,187.67,70.02928071]
[1761952456694,0.72,187.7,187.67,70.02928071]
[1761952456886,3.99229265,187.69,187.67,70.02928071]
[1761952457064,0.72,187.7,187.67,70.02928071]
[1761952457266,3.99229304,187.69,187.67,70.02928071]
[1761952457466,0.72,187.7,187.67,70.02928071]
[1761952457696,3.99303532,187.69,187.67,70.02928071]
[1761952457897,0.72,187.7,187.67,70.02928071]
[1761952458087,3.99303492,187.69,187.67,70.02928071]
[1761952458286,3.99377378,187.68,187.67,70.02928071]
[1761952458791,3.99377378,187.68,187.67,70.72928071]
[1761952462899,3.99377378,187.68,187.67,70.02928071]
[1761952463283,3.99377378,187.68,187.67,64.70077856]
[1761952464292,4.68377378,187.68,187.67,60.71]
[1761952464892,6.65019258,187.68,187.67,60.71]
[1761952465398,6.65019258,187.68,187.65,70.96789094]
[1761952465582,4.70377378,187.67,187.65,70.96789094]
[1761952465782,3.99377378,187.66,187.65,70.96789094]
[1761952466605,3.99377378,187.66,187.65,74.96166472]
[1761952468867,4.70377378,187.66,187.65,74.96166472]
[1761952469071,3.99377378,187.66,187.65,74.96166472]
[1761952469880,6.67019258,187.66,187.65,70.96789094]
[1761952470190,4.70377378,187.66,187.65,70.96789094]
[1761952475616,4.70377378,187.66,187.65,10.25789094]
[1761952475617,6.67019258,187.66,187.65,10.25789094]
[1761952483413,6.66181118,187.66,187.65,10.25789094]
[1761952489529,6.66040486,187.66,187.65,10.25789094]
[1761952496221,27.25240486,187.66,187.65,10.25789094]
[1761952500039,6.66040486,187.66,187.65,10.25789094]
[1761952500239,19.85486616,187.66,187.65,10.25789094]
[1761952503536,16.17562506,187.66,187.65,10.25789094]
[1761952508258,36.76762506,187.66,187.65,10.25789094]
[1761952508441,16.17562506,187.66,187.65,10.25789094]
[1761952510742,36.76762506,187.66,187.65,10.25789094]
[1761952510949,16.17562506,187.66,187.65,10.25789094]
[1761952512737,16.17876521,187.66,187.65,10.25789094]
[1761952514861,20.592,187.63,187.61,0.1]
[1761952515048,7.06355266,187.62,187.61,0.1]
[1761952515247,7.75355266,187.62,187.61,0.1]
[1761952516635,13.08347484,187.62,187.61,0.1]
[1761952517448,7.75355266,187.62,187.61,0.1]
[1761952522440,13.08347484,187.62,187.61,0.1]
[1761952523937,9.78882769,187.61,187.6,0.1]
[1761952524138,21.105337,187.61,187.59,0.1]
[1761952524338,7.72355266,187.6,187.59,0.1]
[1761952526346,13.05404306,187.6,187.59,0.1]
[1761952528051,13.05404306,187.6,187.57,0.1]
[1761952528052,20.592,187.58,187.57,0.1]
[1761952528252,30.73197911,187.58,187.57,0.1]
[1761952528454,31.42197911,187.58,187.57,0.1]
[1761952528678,27.65555266,187.58,187.57,0.1]
[1761952528852,27.65555266,187.58,187.57,0.8]
[1761952529362,27.65555266,187.58,187.57,0.1]
[1761952530067,28.34555266,187.58,187.57,0.1]
[1761952531569,27.65555266,187.58,187.57,0.1]
[1761952533261,3.98712621,187.58,187.57,0.8]
[1761952533651,3.98712621,187.58,187.57,2.93703753]
[1761952534768,3.98712621,187.58,187.57,8.26838049]
[1761952535875,3.98712621,187.58,187.57,11.34480694]
[1761952536073,3.07642645,187.64,187.57,21.5967379]
[1761952536392,7.06322591,187.63,187.58,3.77642645]
[1761952536556,3.98679946,187.62,187.58,3.77642645]
[1761952536758,3.98679946,187.61,187.59,0.7]
[1761952536974,3.98679946,187.6,187.59,0.7]
[1761952537172,3.98679946,187.6,187.59,16.72606907]
[1761952537680,3.98679946,187.6,187.59,22.05684363]
[1761952538562,3.98528702,187.6,187.59,22.05684363]
[1761952541162,3.98528702,187.6,187.59,82.76684363]
[1761952547678,3.98528702,187.6,187.59,77.43606907]
[1761952549182,3.98528702,187.6,187.59,60.71]
[1761952549385,4.67528702,187.6,187.59,60.71]
[1761952549692,7.75171347,187.6,187.59,60.71]
[1761952550192,3.98528702,187.6,187.57,82.86823161]
[1761952550487,3.98528702,187.59,187.58,0.7]
[1761952550864,3.98528702,187.59,187.58,4.68528702]
[1761952551305,3.98528702,187.59,187.58,10.01634576]
[1761952554405,3.98528702,187.59,187.58,4.68528702]
[1761952555182,3.98528702,187.59,187.58,0.7]
[1761952557095,3.98528702,187.59,187.58,6.03105874]
[1761952558798,3.98528702,187.59,187.58,9.10748519]
[1761952560173,3.98528702,187.59,187.58,18.89631288]
[1761952560416,3.07642645,187.65,187.58,34.92152588]
[1761952560590,3.98650221,187.64,187.59,0.69]
[1761952560905,3.98650221,187.63,187.59,3.76642645]
[1761952561112,3.98650221,187.62,187.59,3.76642645]
[1761952561405,3.98650221,187.61,187.6,0.69]
[1761952561705,3.98650221,187.61,187.6,60.71]
[1761952562782,3.9874721,187.61,187.6,60.71]
[1761952563097,4.6474721,187.61,187.6,60.71]
[1761952564804,3.9874721,187.61,187.58,66.73100929]
[1761952565103,3.9874721,187.6,187.58,69.80743574]
[1761952565406,3.9874721,187.59,187.58,68.00913925]
[1761952565789,3.9874721,187.59,187.58,68.69913925]
[1761952565991,3.9874721,187.59,187.58,72.68661135]
[1761952567792,3.9874721,187.59,187.58,70.71848139]
[1761952567987,3.9874721,187.59,187.58,3.9874721]
[1761952567988,6.61560206,187.59,187.58,3.9874721]
[1761952568185,6.61560206,187.59,187.57,0.1]
[1761952568388,6.61560206,187.58,187.57,0.1]
[1761952571914,4.6474721,187.58,187.57,0.1]
[1761952573292,3.9874721,187.58,187.57,0.79]
[1761952574608,3.9874721,187.58,187.57,17.87830061]
[1761952575010,3.9874721,187.58,187.57,21.86577271]
[1761952575214,0.66,187.66,187.58,9.78882769]
[1761952575513,3.99090606,187.65,187.6,1.96812996]
[1761952575716,3.99090606,187.64,187.6,1.96812996]
[1761952576014,3.99090606,187.63,187.6,2.65812996]
[1761952576197,3.99090606,187.62,187.6,7.98857204]
[1761952576396,3.99090606,187.61,187.6,68.00857204]
[1761952577320,3.99090606,187.61,187.6,7.98857204]
[1761952578318,3.99090606,187.61,187.6,6.02044208]
[1761952579017,3.99090606,187.61,187.6,10.01134814]
[1761952580090,3.99090606,187.61,187.6,11.9794781]
[1761952582324,3.99090606,187.61,187.6,82.47830579]
[1761952582625,3.99090606,187.61,187.6,80.51017583]
[1761952582800,5.32686851,187.73,187.6,80.51017583]
[1761952582801,2.67812996,187.68,187.61,9.78882769]
[1761952583013,3.99074486,187.67,187.61,71.17882769]
[1761952583214,3.99074486,187.66,187.62,0.68]
[1761952583426,3.99074486,187.65,187.62,6.00686851]
[1761952583620,3.99074486,187.64,187.62,6.00686851]
[1761952583815,3.99074486,187.63,187.62,5.32686851]
[1761952584408,3.99074486,187.63,187.62,6.00686851]
[1761952584609,3.99074486,187.63,187.62,11.33679069]
[1761952586336,3.99074486,187.63,187.62,83.80374834]
[1761952588546,2.62812996,187.69,187.63,9.78882769]
[1761952588717,3.9847995,187.68,187.64,0.65]
[1761952588918,3.9847995,187.67,187.64,0.65]
[1761952589149,3.9847995,187.66,187.64,0.65]
[1761952589431,3.9847995,187.65,187.64,0.65]
[1761952589629,3.9847995,187.65,187.64,66.68935408]
[1761952591345,3.9847995,187.65,187.64,66.03935408]
[1761952591724,3.9847995,187.65,187.64,60.71]
[1761952593222,3.9847995,187.65,187.64,66.03935408]
[1761952593755,3.9790738,187.65,187.64,66.03935408]
[1761952598828,3.97874565,187.65,187.64,66.03935408]
[1761952599027,0.66,187.67,187.64,66.03935408]
[1761952599227,3.97901751,187.66,187.64,70.01809973]
[1761952599534,0.66,187.67,187.64,70.01809973]
[1761952599729,0.66,187.67,187.64,66.03935408]
[1761952600324,3.9786305,187.66,187.64,66.03935408]
[1761952600649,0.66,187.67,187.64,66.03935408]
[1761952600834,3.97842522,187.66,187.64,66.03935408]
[1761952601033,0.66,187.67,187.64,66.03935408]
[1761952601248,3.97910789,187.66,187.64,66.03935408]
[1761952601548,0.66,187.67,187.64,66.68935408]
[1761952601727,3.97894159,187.66,187.64,66.68935408]
[1761952601927,0.66,187.67,187.64,66.68935408]
[1761952602149,3.97899553,187.66,187.64,66.68935408]
[1761952602328,0.66,187.67,187.64,66.03935408]
[1761952602529,3.97855475,187.66,187.64,66.03935408]
[1761952602733,0.66,187.67,187.64,66.03935408]
[1761952602932,3.97827154,187.66,187.64,66.03935408]
[1761952603258,0.66,187.67,187.64,66.03935408]
[1761952603554,3.97810375,187.66,187.64,66.03935408]
[1761952603756,0.66,187.67,187.64,66.03935408]
[1761952603933,3.97848044,187.66,187.64,66.68935408]
[1761952604141,0.66,187.67,187.64,66.68935408]
[1761952604340,3.97976408,187.66,187.64,66.03935408]
[1761952604535,0.66,187.67,187.64,66.03935408]
[1761952604742,3.97985665,187.66,187.64,66.03935408]
[1761952604947,0.66,187.67,187.64,66.03935408]
[1761952605142,3.97985814,187.66,187.64,66.03935408]
[1761952605342,0.66,187.67,187.64,66.03935408]
[1761952605551,0.66,187.67,187.64,70.66921222]
[1761952606059,0.66,187.68,187.64,70.66921222]
[1761952606259,3.97986391,187.67,187.65,0.65]
[1761952606443,0.66,187.68,187.66,5.3287861]
[1761952606631,3.97954339,187.67,187.66,5.3287861]
[1761952607651,3.97954339,187.67,187.65,5.32907007]
[1761952607954,0.66,187.7,187.66,0.65]
[1761952608155,3.97967998,187.69,187.66,61.36]
[1761952608358,3.97967998,187.68,187.66,61.36]
[1761952608661,3.97967998,187.67,187.66,75.12850767]
[1761952609537,0.66,187.7,187.66,75.12850767]
[1761952609738,3.97987925,187.69,187.67,5.32850215]
[1761952609928,3.97987925,187.68,187.67,5.32850215]
[1761952611553,3.97987925,187.68,187.67,5.97850215]
[1761952611754,3.97987925,187.68,187.67,66.68850215]
[1761952615763,3.97987925,187.68,187.67,66.03850215]
[1761952617940,3.97987925,187.68,187.67,66.70850215]
[1761952619184,3.97987925,187.68,187.67,66.03850215]
[1761952621276,3.97987925,187.68,187.67,60.71]